fUSD/lending_fUSD_20260601
["ID","MTS","AMOUNT","RATE_DAILY","PERIOD"]
[423658435,1780282282000,-3000.0,0.00039165,30]
[423658432,1780282282000,-897.55,0.00039145,30]
[423658426,1780282282000,-2000.0,0.00039127,120]
[423658430,1780282282000,-150.0,0.00039145,30]
[423658434,1780282282000,-320.0,0.00039164,58]
[423658433,1780282282000,-320.0,0.00039164,58]
[423658431,1780282282000,-1674.37,0.00039145,30]
[423658438,1780282282000,-3000.0,0.00039165,30]
[423658440,1780282282000,-3000.0,0.00039165,30]
[423658446,1780282282000,-2319.0,0.00039175,11]
[423658442,1780282282000,-3000.0,0.00039165,30]
[423658445,1780282282000,-2137.44,0.00039165,30]
[423658441,1780282282000,-3000.0,0.00039165,30]
[423658429,1780282282000,-1971.87,0.00039145,30]
[423658444,1780282282000,-3000.0,0.00039165,30]
[423658439,1780282282000,-3000.0,0.00039165,30]
[423658448,1780282282000,-320.0,0.00039184,58]
[423658449,1780282282000,-387.0,0.00039189,2]
[423658451,1780282282000,-1591.0,0.00039198,11]
[423658453,1780282282000,-458.545808,0.000392,2]
[423658450,1780282282000,-320.0,0.00039197,58]
[423658452,1780282282000,-7193.59,0.000392,2]
[423658455,1780282282000,-300.0,0.000392,28]
[423658456,1780282282000,-171.95,0.000392,120]
[423658454,1780282282000,-524.7678404,0.000392,7]
[423658458,1780282282000,-232.01,0.000392,23]
[423658459,1780282282000,-151.0,0.000392,120]
[423658457,1780282282000,-232.01,0.000392,23]
[423658396,1780282282000,-500.0,0.00039,14]
[423658443,1780282282000,-3000.0,0.00039165,30]
[423658436,1780282282000,-3000.0,0.00039165,30]
[423658447,1780282282000,-499.999999,0.0003918,30]
[423658424,1780282282000,-3299.07571999,0.00039116,2]
[423658428,1780282282000,-320.0,0.00039143,57]
[423658398,1780282282000,-500.0,0.00039,14]
[423658409,1780282282000,-320.0,0.00039041,56]
[423658408,1780282282000,-320.0,0.00039041,56]
[423658399,1780282282000,-500.0,0.00039,14]
[423658400,1780282282000,-500.0,0.00039,14]
[423658404,1780282282000,-544.0,0.00039,120]
[423658397,1780282282000,-500.0,0.00039,14]
[423658401,1780282282000,-500.0,0.00039,14]
[423658407,1780282282000,-356.2565872,0.0003904,2]
[423658406,1780282282000,-825.0,0.0003903,5]
[423658403,1780282282000,-375.4,0.00039,14]
[423658405,1780282282000,-2110.0,0.00039007,2]
[423658402,1780282282000,-500.0,0.00039,14]
[423658410,1780282282000,-320.0,0.00039069,57]
[423658391,1780282282000,-500.0,0.00039,14]
[423658413,1780282282000,-320.0,0.00039087,57]
[423658412,1780282282000,-1425.77092775,0.00039076,2]
[423658425,1780282282000,-320.0,0.0003912,57]
[423658423,1780282282000,-167.49345533,0.00039105,60]
[423658411,1780282282000,-1471.91736641,0.00039076,2]
[423658422,1780282282000,-445.917291,0.000391,2]
[423658421,1780282282000,-89431.0,0.000391,7]
[423658416,1780282282000,-1000.0,0.00039097,90]
[423658427,1780282282000,-320.0,0.00039127,57]
[423658415,1780282282000,-320.0,0.00039095,57]
[423658418,1780282282000,-237.64,0.000391,9]
[423658419,1780282282000,-246.909281,0.000391,2]
[423658417,1780282282000,-1521.61,0.000391,9]
[423658414,1780282282000,-158.02378101,0.00039094,2]
[423658420,1780282282000,-221.216781,0.000391,2]
[423658516,1780282283000,-1585.29,0.00039361,7]
[423658515,1780282283000,-1585.29,0.00039361,7]
[423658517,1780282283000,-1585.29,0.00039361,7]
[423658505,1780282283000,-1585.29,0.00039361,7]
[423658502,1780282283000,-1585.29,0.00039361,7]
[423658495,1780282283000,-387.0,0.00039337,2]
[423658496,1780282283000,-178.106587,0.00039349,120]
[423658499,1780282283000,-178.106587,0.00039349,120]
[423658500,1780282283000,-278.31429005,0.00039353,120]
[423658498,1780282283000,-178.106587,0.00039349,120]
[423658493,1780282283000,-165.00137927,0.00039332,120]
[423658494,1780282283000,-150.33094002,0.00039332,120]
[423658509,1780282283000,-1585.29,0.00039361,7]
[423658497,1780282283000,-178.106587,0.00039349,120]
[423658514,1780282283000,-1585.29,0.00039361,7]
[423658511,1780282283000,-1585.29,0.00039361,7]
[423658508,1780282283000,-1585.29,0.00039361,7]
[423658512,1780282283000,-1585.29,0.00039361,7]
[423658504,1780282283000,-1585.29,0.00039361,7]
[423658507,1780282283000,-1585.29,0.00039361,7]
[423658513,1780282283000,-1585.29,0.00039361,7]
[423658510,1780282283000,-1585.29,0.00039361,7]
[423658518,1780282283000,-1585.29,0.00039361,7]
[423658519,1780282283000,-1585.29,0.00039361,7]
[423658520,1780282283000,-1585.29,0.00039361,7]
[423658529,1780282283000,-1585.29,0.00039361,7]
[423658523,1780282283000,-1585.29,0.00039361,7]
[423658528,1780282283000,-1585.29,0.00039361,7]
[423658531,1780282283000,-1585.29,0.00039361,7]
[423658501,1780282283000,-10000.0,0.00039361,120]
[423658506,1780282283000,-1585.29,0.00039361,7]
[423658492,1780282283000,-153.32827126,0.00039332,120]
[423658461,1780282283000,-155.16,0.00039209,120]
[423658503,1780282283000,-1585.29,0.00039361,7]
[423658462,1780282283000,-1591.0,0.00039215,11]
[423658460,1780282283000,-320.0,0.00039203,58]
[423658465,1780282283000,-320.0,0.0003922,58]
[423658466,1780282283000,-320.0,0.00039226,58]
[423658463,1780282283000,-163.0,0.00039219,11]
[423658468,1780282283000,-320.0,0.00039237,58]
[423658467,1780282283000,-387.0,0.00039235,2]
[423658473,1780282283000,-150.0,0.0003926,120]
[423658469,1780282283000,-337.0,0.00039243,120]
[423658470,1780282283000,-320.0,0.00039252,59]
[423658472,1780282283000,-2000.0,0.00039255,120]
[423658464,1780282283000,-2319.0,0.00039219,11]
[423658471,1780282283000,-320.0,0.00039252,59]
[423658474,1780282283000,-320.0,0.00039266,59]
[423658490,1780282283000,-1328.27659266,0.00039331,30]
[423658475,1780282283000,-320.0,0.00039275,59]
[423658484,1780282283000,-2005.9555727,0.00039299,30]
[423658481,1780282283000,-320.0,0.00039292,59]
[423658480,1780282283000,-387.0,0.00039283,2]
[423658486,1780282283000,-12000.0,0.000393,30]
[423658485,1780282283000,-291.59736433,0.000393,30]
[423658478,1780282283000,-218.87046058,0.00039283,120]
[423658488,1780282283000,-359.56,0.00039315,59]
[423658489,1780282283000,-1521.46317608,0.0003932,30]
[423658482,1780282283000,-320.0,0.00039296,59]
[423658477,1780282283000,-20839.59444734,0.00039282,2]
[423658479,1780282283000,-207.30041193,0.00039283,120]
[423658483,1780282283000,-1377.42282658,0.00039299,30]
[423658487,1780282283000,-221.0,0.000393,120]
[423658491,1780282283000,-1934.38338736,0.00039331,30]
[423658476,1780282283000,-320.0,0.0003928,59]
[423658525,1780282283000,-1585.29,0.00039361,7]
[423658545,1780282283000,-1585.29,0.00039361,7]
[423658522,1780282283000,-1585.29,0.00039361,7]
[423658566,1780282283000,-68923.37868645,0.00039361,2]
[423658562,1780282283000,-1585.29,0.00039361,7]
[423658567,1780282283000,-255.72229011,0.00039361,2]
[423658564,1780282283000,-68923.37868645,0.00039361,2]
[423658565,1780282283000,-255.72229011,0.00039361,2]
[423658561,1780282283000,-1585.29,0.00039361,7]
[423658569,1780282283000,-5000.0,0.00039361,2]
[423658563,1780282283000,-68923.37868645,0.00039361,2]
[423658568,1780282283000,-68923.37868645,0.00039361,2]
[423658573,1780282283000,-250.0,0.00039362,7]
[423658583,1780282283000,-158.73,0.0003937,60]
[423658576,1780282283000,-500.0,0.00039368,4]
[423658574,1780282283000,-2868.0,0.00039364,120]
[423658577,1780282283000,-1465.73406139,0.00039368,2]
[423658559,1780282283000,-1585.29,0.00039361,7]
[423658580,1780282283000,-200.0,0.0003937,120]
[423658575,1780282283000,-158.02378101,0.00039368,2]
[423658578,1780282283000,-1465.73406139,0.00039368,2]
[423658581,1780282283000,-200.0,0.0003937,120]
[423658582,1780282283000,-256.78,0.0003937,120]
[423658579,1780282283000,-200.0,0.0003937,120]
[423658585,1780282283000,-868364.73818434,0.000394,15]
[423658584,1780282283000,-2000.0,0.00039384,120]
[423658587,1780282283000,-500.0,0.000394,14]
[423658586,1780282283000,-193.341666,0.000394,23]
[423658589,1780282283000,-500.0,0.000394,14]
[423658591,1780282283000,-500.0,0.000394,14]
[423658590,1780282283000,-500.0,0.000394,14]
[423658588,1780282283000,-500.0,0.000394,14]
[423658592,1780282283000,-500.0,0.000394,14]
[423658572,1780282283000,-250.0,0.00039361,2]
[423658570,1780282283000,-5000.0,0.00039361,2]
[423658521,1780282283000,-1585.29,0.00039361,7]
[423658560,1780282283000,-1585.29,0.00039361,7]
[423658571,1780282283000,-250.0,0.00039361,2]
[423658530,1780282283000,-1585.29,0.00039361,7]
[423658526,1780282283000,-1585.29,0.00039361,7]
[423658524,1780282283000,-1585.29,0.00039361,7]
[423658527,1780282283000,-1585.29,0.00039361,7]
[423658533,1780282283000,-1585.29,0.00039361,7]
[423658534,1780282283000,-1585.29,0.00039361,7]
[423658532,1780282283000,-1585.29,0.00039361,7]
[423658536,1780282283000,-1585.29,0.00039361,7]
[423658535,1780282283000,-1585.29,0.00039361,7]
[423658543,1780282283000,-1585.29,0.00039361,7]
[423658538,1780282283000,-1585.29,0.00039361,7]
[423658539,1780282283000,-1585.29,0.00039361,7]
[423658541,1780282283000,-1585.29,0.00039361,7]
[423658542,1780282283000,-1585.29,0.00039361,7]
[423658544,1780282283000,-1585.29,0.00039361,7]
[423658540,1780282283000,-1585.29,0.00039361,7]
[423658537,1780282283000,-1585.29,0.00039361,7]
[423658551,1780282283000,-1585.29,0.00039361,7]
[423658552,1780282283000,-1585.29,0.00039361,7]
[423658556,1780282283000,-1585.29,0.00039361,7]
[423658554,1780282283000,-1585.29,0.00039361,7]
[423658557,1780282283000,-1585.29,0.00039361,7]
[423658555,1780282283000,-1585.29,0.00039361,7]
[423658548,1780282283000,-1585.29,0.00039361,7]
[423658546,1780282283000,-1585.29,0.00039361,7]
[423658549,1780282283000,-1585.29,0.00039361,7]
[423658550,1780282283000,-1585.29,0.00039361,7]
[423658558,1780282283000,-1585.29,0.00039361,7]
[423658547,1780282283000,-1585.29,0.00039361,7]
[423658553,1780282283000,-1585.29,0.00039361,7]
[423658635,1780282284000,-767.0,0.00039485,120]
[423658637,1780282284000,-1554.0,0.00039485,120]
[423658638,1780282284000,-1162.0,0.00039485,120]
[423658636,1780282284000,-354.0,0.00039485,120]
[423658633,1780282284000,-500.0,0.00039476,60]
[423658629,1780282284000,-410.740211,0.00039452,120]
[423658632,1780282284000,-378.0,0.0003947,120]
[423658626,1780282284000,-300.0,0.00039452,120]
[423658631,1780282284000,-387.0,0.00039464,2]
[423658628,1780282284000,-300.0,0.00039452,120]
[423658627,1780282284000,-300.0,0.00039452,120]
[423658639,1780282284000,-316.0,0.00039485,120]
[423658634,1780282284000,-594.0,0.00039485,120]
[423658650,1780282284000,-800.0,0.00039493,14]
[423658663,1780282284000,-8882.6885148,0.00039499,30]
[423658644,1780282284000,-1865.36488656,0.00039492,30]
[423658647,1780282284000,-800.0,0.00039493,14]
[423658640,1780282284000,-150.0,0.00039487,120]
[423658651,1780282284000,-800.0,0.00039493,14]
[423658642,1780282284000,-2487.15318208,0.00039492,30]
[423658646,1780282284000,-800.0,0.00039493,14]
[423658643,1780282284000,-1280.88388877,0.00039492,30]
[423658649,1780282284000,-800.0,0.00039493,14]
[423658648,1780282284000,-800.0,0.00039493,14]
[423658645,1780282284000,-800.0,0.00039493,14]
[423658653,1780282284000,-762.0,0.00039493,30]
[423658654,1780282284000,-10657.30296957,0.00039493,3]
[423658652,1780282284000,-800.0,0.00039493,14]
[423658630,1780282284000,-387.0,0.00039453,2]
[423658641,1780282284000,-434831.71375779,0.0003949,2]
[423658625,1780282284000,-300.0,0.00039452,120]
[423658607,1780282284000,-3449.14412056,0.00039452,30]
[423658620,1780282284000,-300.0,0.00039452,120]
[423658664,1780282284000,-668.65185756,0.00039499,47]
[423658596,1780282284000,-632.0,0.00039418,15]
[423658595,1780282284000,-200.0,0.000394,10]
[423658594,1780282284000,-500.0,0.000394,14]
[423658593,1780282284000,-500.0,0.000394,14]
[423658597,1780282284000,-163.0,0.0003943,120]
[423658601,1780282284000,-2773.56790518,0.00039452,30]
[423658610,1780282284000,-300.0,0.00039452,120]
[423658598,1780282284000,-387.0,0.00039445,2]
[423658609,1780282284000,-300.0,0.00039452,120]
[423658599,1780282284000,-2579.17784982,0.00039452,30]
[423658602,1780282284000,-2876.18991768,0.00039452,30]
[423658603,1780282284000,-2982.60894463,0.00039452,31]
[423658600,1780282284000,-2674.60743026,0.00039452,30]
[423658621,1780282284000,-300.0,0.00039452,120]
[423658604,1780282284000,-3092.96547558,0.00039452,30]
[423658606,1780282284000,-3326.07919051,0.00039452,30]
[423658605,1780282284000,-3207.40519818,0.00039452,31]
[423658611,1780282284000,-300.0,0.00039452,120]
[423658613,1780282284000,-300.0,0.00039452,120]
[423658615,1780282284000,-300.0,0.00039452,120]
[423658618,1780282284000,-300.0,0.00039452,120]
[423658614,1780282284000,-300.0,0.00039452,120]
[423658616,1780282284000,-300.0,0.00039452,120]
[423658617,1780282284000,-300.0,0.00039452,120]
[423658623,1780282284000,-300.0,0.00039452,120]
[423658622,1780282284000,-300.0,0.00039452,120]
[423658619,1780282284000,-300.0,0.00039452,120]
[423658612,1780282284000,-300.0,0.00039452,120]
[423658624,1780282284000,-300.0,0.00039452,120]
[423658608,1780282284000,-2728.05883011,0.00039452,30]
[423658656,1780282284000,-1235.18214925,0.00039495,30]
[423658657,1780282284000,-1798.80895522,0.00039495,30]
[423658715,1780282284000,-500.0,0.000395,120]
[423658696,1780282284000,-753.0,0.000395,30]
[423658697,1780282284000,-4000.0,0.000395,120]
[423658695,1780282284000,-753.0,0.000395,30]
[423658691,1780282284000,-787.0,0.000395,30]
[423658701,1780282284000,-1333.8881789,0.000395,119]
[423658700,1780282284000,-210.0,0.000395,120]
[423658702,1780282284000,-232.01,0.000395,23]
[423658699,1780282284000,-2356.18,0.000395,75]
[423658703,1780282284000,-232.01,0.000395,23]
[423658704,1780282284000,-232.01,0.000395,23]
[423658706,1780282284000,-232.01,0.000395,23]
[423658707,1780282284000,-232.01,0.000395,23]
[423658708,1780282284000,-232.01,0.000395,23]
[423658709,1780282284000,-232.01,0.000395,23]
[423658692,1780282284000,-787.0,0.000395,30]
[423658714,1780282284000,-500.0,0.000395,120]
[423658713,1780282284000,-500.0,0.000395,120]
[423658712,1780282284000,-500.0,0.000395,120]
[423658705,1780282284000,-232.01,0.000395,23]
[423658711,1780282284000,-500.0,0.000395,60]
[423658721,1780282284000,-500.0,0.000395,120]
[423658716,1780282284000,-500.0,0.000395,120]
[423658718,1780282284000,-500.0,0.000395,120]
[423658717,1780282284000,-500.0,0.000395,120]
[423658722,1780282284000,-500.0,0.000395,120]
[423658719,1780282284000,-500.0,0.000395,120]
[423658720,1780282284000,-500.0,0.000395,120]
[423658724,1780282284000,-500.0,0.000395,120]
[423658723,1780282284000,-500.0,0.000395,120]
[423658659,1780282284000,-1191.11104074,0.00039499,30]
[423658710,1780282284000,-500.0,0.000395,30]
[423658693,1780282284000,-772.0,0.000395,30]
[423658698,1780282284000,-150.0,0.000395,16]
[423658690,1780282284000,-787.0,0.000395,30]
[423658661,1780282284000,-212.66221083,0.00039499,47]
[423658660,1780282284000,-206.33422798,0.00039499,30]
[423658655,1780282284000,-2398.41194029,0.00039495,30]
[423658658,1780282284000,-2312.83697232,0.00039499,30]
[423658662,1780282284000,-644.79446245,0.00039499,30]
[423658667,1780282284000,-500.0,0.00039499,30]
[423658665,1780282284000,-1734.62772924,0.00039499,30]
[423658671,1780282284000,-151.0,0.00039499,30]
[423658694,1780282284000,-753.0,0.000395,30]
[423658674,1780282284000,-163.41086762,0.00039499,47]
[423658677,1780282284000,-800.44602345,0.00039499,47]
[423658672,1780282284000,-644.79446245,0.00039499,30]
[423658670,1780282284000,-553.06967674,0.00039499,47]
[423658669,1780282284000,-152.0,0.00039499,30]
[423658666,1780282284000,-9211.34798984,0.00039499,47]
[423658676,1780282284000,-167.11928795,0.00039499,47]
[423658668,1780282284000,-194.72792766,0.00039499,30]
[423658684,1780282284000,-2260.37620147,0.000395,120]
[423658673,1780282284000,-210.42352439,0.00039499,47]
[423658686,1780282284000,-787.0,0.000395,30]
[423658682,1780282284000,-588.37750788,0.00039499,40]
[423658688,1780282284000,-787.0,0.000395,30]
[423658687,1780282284000,-787.0,0.000395,30]
[423658685,1780282284000,-787.0,0.000395,30]
[423658681,1780282284000,-309.48496092,0.00039499,47]
[423658680,1780282284000,-151.0,0.00039499,30]
[423658678,1780282284000,-670.58624095,0.00039499,30]
[423658689,1780282284000,-787.0,0.000395,30]
[423658679,1780282284000,-500.0,0.00039499,47]
[423658675,1780282284000,-500.0,0.00039499,30]
[423658683,1780282284000,-185.65888788,0.00039499,47]
[423658743,1780282285000,-1326.0,0.00039504,120]
[423658733,1780282285000,-1779.31429305,0.000395,2]
[423658738,1780282285000,-1676.44,0.00039504,2]
[423658741,1780282285000,-431.0,0.00039504,120]
[423658734,1780282285000,-1779.31429305,0.000395,2]
[423658735,1780282285000,-362.62154501,0.00039503,120]
[423658729,1780282285000,-1670.84359409,0.000395,2]
[423658726,1780282285000,-300.0,0.000395,10]
[423658725,1780282285000,-510.17059001,0.000395,120]
[423658727,1780282285000,-2408.77558703,0.000395,2]
[423658728,1780282285000,-2408.77558703,0.000395,2]
[423658730,1780282285000,-1670.84359409,0.000395,2]
[423658732,1780282285000,-200.0,0.000395,18]
[423658731,1780282285000,-194.674,0.000395,40]
[423658739,1780282285000,-234.0,0.00039504,120]
[423658755,1780282285000,-449.3404125,0.00039504,30]
[423658744,1780282285000,-485.0,0.00039504,120]
[423658736,1780282285000,-293.93268827,0.00039503,120]
[423658753,1780282285000,-181.041414,0.00027397,2]
[423658754,1780282285000,-959.90169081,0.00039504,30]
[423658751,1780282285000,-13677.4,0.00039504,30]
[423658749,1780282285000,-4440.12,0.00039504,60]
[423658748,1780282285000,-867.64,0.00039504,60]
[423658752,1780282285000,-500.0,0.00010958,7]
[423658747,1780282285000,-150.0,0.00039504,2]
[423658745,1780282285000,-1197.0,0.00039504,120]
[423658746,1780282285000,-743.0,0.00039504,120]
[423658740,1780282285000,-2623.0,0.00039504,120]
[423658742,1780282285000,-341.0,0.00039504,120]
[423658737,1780282285000,-188.45645101,0.00039503,120]
[423658750,1780282285000,-1918794.56287304,0.00039504,30]
[423658771,1780282286000,-500.0,8.423e-05,2]
[423658775,1780282286000,-359.30362247,8.423e-05,2]
[423658774,1780282286000,-546.0,8.423e-05,2]
[423658773,1780282286000,-500.0,8.423e-05,2]
[423658777,1780282286000,-150.0,8.423e-05,2]
[423658781,1780282286000,-500.0,0.00010958,9]
[423658776,1780282286000,-546.0,8.423e-05,2]
[423658789,1780282286000,-181.041414,0.00027397,2]
[423658782,1780282286000,-500.0,0.00010958,10]
[423658785,1780282286000,-500.0,0.00010958,13]
[423658783,1780282286000,-500.0,0.00010958,11]
[423658784,1780282286000,-500.0,0.00010958,12]
[423658793,1780282286000,-181.041414,0.00027397,2]
[423658788,1780282286000,-500.0,0.00010958,16]
[423658791,1780282286000,-9627.13,0.00027397,10]
[423658772,1780282286000,-546.0,8.423e-05,2]
[423658769,1780282286000,-500.0,8.423e-05,2]
[423658787,1780282286000,-500.0,0.00010958,15]
[423658779,1780282286000,-546.0,8.423e-05,2]
[423658756,1780282286000,-358.49589346,8.423e-05,2]
[423658757,1780282286000,-141.50410654,8.423e-05,2]
[423658759,1780282286000,-311.71354979,8.423e-05,2]
[423658758,1780282286000,-546.0,8.423e-05,2]
[423658760,1780282286000,-188.28645021,8.423e-05,2]
[423658761,1780282286000,-405.12349155,8.423e-05,2]
[423658763,1780282286000,-546.0,8.423e-05,2]
[423658764,1780282286000,-546.0,8.423e-05,2]
[423658762,1780282286000,-546.0,8.423e-05,2]
[423658765,1780282286000,-500.0,8.423e-05,2]
[423658766,1780282286000,-546.0,8.423e-05,2]
[423658767,1780282286000,-500.0,8.423e-05,2]
[423658768,1780282286000,-546.0,8.423e-05,2]
[423658770,1780282286000,-546.0,8.423e-05,2]
[423658778,1780282286000,-546.0,8.423e-05,2]
[423658780,1780282286000,-500.0,0.00010958,8]
[423658786,1780282286000,-500.0,0.00010958,14]
[423658818,1780282286000,-66.99636341,0.00027397,2]
[423658790,1780282286000,-181.041414,0.00027397,2]
[423658814,1780282286000,-192.88970174,0.00011201,2]
[423658812,1780282286000,-546.0,8.423e-05,2]
[423658811,1780282286000,-546.0,8.423e-05,2]
[423658815,1780282286000,-2247.92791488,0.00011201,2]
[423658817,1780282286000,-181.041414,0.00027397,2]
[423658820,1780282286000,-181.041414,0.00027397,2]
[423658822,1780282286000,-150.0,0.00032562,2]
[423658821,1780282286000,-181.041414,0.00027397,2]
[423658823,1780282286000,-150.0,0.0003419,2]
[423658824,1780282286000,-403.33114859,0.00035562,2]
[423658825,1780282286000,-151.0,0.00038356,30]
[423658827,1780282286000,-5902.17759685,0.00039504,30]
[423658826,1780282286000,-152.594823,0.00038356,30]
[423658828,1780282286000,-536.34,0.00035562,2]
[423658792,1780282286000,-181.041414,0.00027397,2]
[423658816,1780282286000,-170.01030771,0.00011809,2]
[423658813,1780282286000,-500.0,0.00010958,17]
[423658819,1780282286000,-114.04505059,0.00027397,2]
[423658808,1780282286000,-546.0,8.423e-05,2]
[423658810,1780282286000,-546.0,8.423e-05,2]
[423658795,1780282286000,-255.95,0.00028957,2]
[423658797,1780282286000,-150.0,0.00031011,2]
[423658796,1780282286000,-150.0,0.00029534,2]
[423658803,1780282286000,-152.016559,0.00038356,30]
[423658802,1780282286000,-151.0,0.00038356,30]
[423658798,1780282286000,-605.72319923,0.00035562,2]
[423658806,1780282286000,-664178.29897038,0.00039504,30]
[423658794,1780282286000,-181.041414,0.00027397,2]
[423658801,1780282286000,-151.0,0.00038356,30]
[423658804,1780282286000,-151.0,0.00038356,30]
[423658805,1780282286000,-151.0,0.00038356,30]
[423658807,1780282286000,-1937771.26643807,0.00039504,30]
[423658800,1780282286000,-5858.45523624,0.000373,30]
[423658809,1780282286000,-546.0,8.423e-05,2]
[423658799,1780282286000,-300.0,0.00035562,2]
[423658843,1780282287000,-739.91,0.00029132,30]
[423658842,1780282287000,-739.91,0.00028964,2]
[423658846,1780282287000,-319.33799449,0.00031339,2]
[423658845,1780282287000,-612.66200551,0.00031339,2]
[423658840,1780282287000,-739.91,0.0002863,30]
[423658838,1780282287000,-932.0,0.00028339,2]
[423658839,1780282287000,-730.0,0.00028395,10]
[423658837,1780282287000,-932.0,0.00025339,2]
[423658834,1780282287000,-163.0,9.5e-05,2]
[423658835,1780282287000,-932.0,0.00022339,2]
[423658833,1780282287000,-546.0,8.423e-05,2]
[423658831,1780282287000,-5858.45523623,0.000373,30]
[423658832,1780282287000,-137626.03929342,0.00039504,30]
[423658830,1780282287000,-532.86589958,0.00035562,2]
[423658829,1780282287000,-546.0,8.423e-05,2]
[423658836,1780282287000,-2440.81761661,0.00023356,2]
[423658844,1780282287000,-739.91,0.00029299,7]
[423658841,1780282287000,-739.91,0.00028797,7]
[423658847,1780282287000,-805.11316284,0.00034339,2]
[423658863,1780282287000,-177.24430535,0.00035562,2]
[423658861,1780282287000,-1632.29173904,0.00039504,30]
[423658864,1780282287000,-743.06612249,0.00039504,30]
[423658860,1780282287000,-172.89183922,0.00039504,30]
[423658859,1780282287000,-932.0,0.00037339,2]
[423658858,1780282287000,-892.53740751,0.00039504,30]
[423658856,1780282287000,-48768.76719865,0.00039504,30]
[423658852,1780282287000,-150.0,0.00037694,2]
[423658865,1780282287000,-577.0,0.00039504,30]
[423658854,1780282287000,-802.1020631,0.00039504,30]
[423658855,1780282287000,-190.776192,0.00038356,30]
[423658850,1780282287000,-103.54325795,0.00035899,2]
[423658851,1780282287000,-46.45674205,0.00035899,2]
[423658848,1780282287000,-126.88683716,0.00034339,2]
[423658857,1780282287000,-6688.4445456,0.00039504,30]
[423658853,1780282287000,-190.776192,0.00038356,30]
[423658849,1780282287000,-535.13791573,0.00035562,2]
[423658862,1780282287000,-550.35082357,0.00035562,2]
[423658866,1780282298000,1108.01879729,9.264e-05,3]
[423658867,1780282331000,-546.0,8.423e-05,2]
[423658868,1780282343000,-546.0,8.423e-05,2]
[423658869,1780282356000,-546.0,8.423e-05,2]
[423658870,1780282357000,-546.0,8.423e-05,2]
[423658871,1780282388000,1000.0,0.00030137,120]
[423658872,1780282421000,2554.0,0.00030137,120]
[423658873,1780282423000,2128.41,0.00026871,120]
[423658874,1780282479000,500.0,0.00030137,120]
[423658875,1780282509000,480.7217,0.00030137,120]
[423658876,1780282663000,-7.75983794,8.423e-05,2]
[423658877,1780282688000,-250.0,8.476e-05,2]
[423658879,1780282701000,-250.0,8.871e-05,2]
[423658878,1780282701000,-250.0,9.265e-05,2]
[423658881,1780282920000,-209.25550537,8.871e-05,2]
[423658885,1780282958000,-193.32212947,8.771e-05,2]
[423658884,1780282958000,-193.32212947,9.265e-05,2]
[423658886,1780282959000,-193.32212947,8.771e-05,2]
[423658889,1780283278000,-55.68304106,8.771e-05,2]
[423658891,1780283316000,-300.38848172,9.648e-05,2]
[423658890,1780283316000,-300.38848172,9.648e-05,2]
[423658892,1780283317000,-199.61151828,9.648e-05,2]
[423658893,1780283317000,-100.77696344,0.00010613,2]
[423658911,1780283432000,-1671.93239998,0.00015717,2]
[423658909,1780283432000,-299.99,0.00014023,2]
[423658914,1780283432000,-150.0,0.00016105,2]
[423658915,1780283432000,-500.0,0.00016171,2]
[423658925,1780283432000,-3623.42,0.00016922,2]
[423658916,1780283432000,-4548.42,0.00016216,2]
[423658910,1780283432000,-9999.99,0.00014023,2]